bitfinex/quotes_SOLUSD_20250528
["timestamp","ask_amount","ask_price","bid_price","bid_amount"]
[1748457057420,9.2,170.48,170.45,23.20448286]
[1748457057421,5.86618235,170.47,170.45,23.20448286]
[1748457057622,5.86618235,170.47,170.46,23.20448286]
[1748457057818,5.86618235,170.47,170.45,23.20448286]
[1748457059917,5.86618235,170.47,170.41,35.72]
[1748457059918,23.20448286,170.46,170.41,23.20448286]
[1748457060459,43.73600221,170.47,170.42,23.20448286]
[1748457060635,23.20448286,170.46,170.4,1.5546]
[1748457060941,23.20448286,170.46,170.42,23.20448286]
[1748457061324,23.20448286,170.46,170.41,23.20448286]
[1748457061516,23.20448286,170.45,170.41,23.20448286]
[1748457062616,5.86716733,170.44,170.4,23.20448286]
[1748457063317,43.73956851,170.44,170.39,23.20448286]
[1748457063927,23.20448286,170.43,170.39,23.20448286]
[1748457064332,23.20448286,170.43,170.38,23.20448286]
[1748457064639,20.53749559,170.42,170.37,35.2]
[1748457064818,43.74197845,170.42,170.38,23.20448286]
[1748457065018,43.74197845,170.42,170.36,37.376]
[1748457065341,5.86785588,170.42,170.4,23.20448286]
[1748457065758,5.86716733,170.44,170.41,23.20448286]
[1748457067425,20.53455428,170.45,170.41,23.20448286]
[1748457070215,20.53455428,170.45,170.37,18.64964886]
[1748457070552,20.53455428,170.45,170.41,23.20448286]
[1748457070758,95.36657495,170.46,170.44,23.20448286]
[1748457070962,95.36608312,170.48,170.45,23.20448286]
[1748457071127,5.86608312,170.48,170.46,23.20448286]
[1748457071563,5.86608312,170.48,170.45,23.20448286]
[1748457072748,29.06992951,170.49,170.45,23.20448286]
[1748457073256,43.73354614,170.49,170.42,18.64964886]
[1748457073423,43.73354614,170.49,170.44,23.20448286]
[1748457075948,23.34664443,170.48,170.41,35.72]
[1748457076247,23.20448286,170.47,170.42,23.20448286]
[1748457076458,23.20448286,170.46,170.41,23.20448286]
[1748457077440,5.86682311,170.45,170.41,23.20448286]
[1748457077636,29.07130597,170.45,170.41,23.20448286]
[1748457078226,5.86682311,170.45,170.41,23.20448286]
[1748457081959,5.86647893,170.46,170.43,23.20448286]
[1748457082169,5.86647893,170.46,170.44,23.20448286]
[1748457082747,5.86647893,170.46,170.43,23.20448286]
[1748457083746,5.86647893,170.46,170.44,23.20448286]
[1748457084272,5.86647893,170.46,170.43,23.20448286]
[1748457084471,5.86647893,170.46,170.42,23.20448286]
[1748457084968,20.53267627,170.46,170.42,23.20448286]
[1748457085352,43.73715913,170.46,170.41,23.20448286]
[1748457085959,69.73715913,170.46,170.41,23.20448286]
[1748457086667,49.20448286,170.43,170.36,1.656]
[1748457086881,49.20448286,170.43,170.38,23.20448286]
[1748457087073,23.20448286,170.43,170.38,23.20448286]
[1748457087370,23.20448286,170.44,170.39,23.20448286]
[1748457088276,89.5,170.45,170.4,23.20448286]
[1748457088448,89.5,170.44,170.42,23.20448286]
[1748457088765,20.53267627,170.46,170.42,23.20448286]
[1748457088989,5.86647893,170.46,170.44,23.20448286]
[1748457089346,5.86647893,170.46,170.43,23.20448286]
[1748457089875,5.86647893,170.46,170.4,54.38964886]
[1748457090060,5.86647893,170.46,170.37,26.0]
[1748457090061,23.20448286,170.44,170.37,26.0]
[1748457090253,23.20448286,170.44,170.39,23.20448286]
[1748457090865,5.86751158,170.43,170.39,23.20448286]
[1748457091270,5.86751158,170.43,170.4,23.20448286]
[1748457092471,5.86716733,170.44,170.4,23.20448286]
[1748457094391,20.53508565,170.44,170.4,23.20448286]
[1748457095267,110.03508565,170.44,170.4,23.20448286]
[1748457095780,133.23956851,170.44,170.39,23.20448286]
[1748457097484,110.03508565,170.44,170.39,23.20448286]
[1748457097689,110.03508565,170.44,170.4,23.20448286]
[1748457098969,133.23956851,170.44,170.39,23.20448286]
[1748457099961,110.03508565,170.44,170.39,23.20448286]
[1748457100162,133.23956851,170.44,170.39,23.20448286]
[1748457101098,23.34664443,170.43,170.38,23.20448286]
[1748457101390,89.5,170.42,170.38,23.20448286]
[1748457102285,5.86820022,170.41,170.38,23.20448286]
[1748457103689,5.86820022,170.41,170.39,23.20448286]
[1748457105568,5.86820022,170.41,170.38,23.20448286]
[1748457110773,5.86820022,170.41,170.39,23.20448286]
[1748457115994,5.86820022,170.41,170.38,23.20448286]
[1748457116377,20.53870077,170.41,170.38,23.20448286]
[1748457116590,23.20448286,170.39,170.32,1.5665]
[1748457116901,20.54352291,170.37,170.3,27.86964886]
[1748457117197,20.54352291,170.37,170.28,23.20448286]
[1748457117198,23.20448286,170.36,170.29,26.0]
[1748457117399,23.20448286,170.35,170.28,1.5809]
[1748457117582,23.20448286,170.34,170.29,23.20448286]
[1748457117783,23.20448286,170.35,170.3,23.20448286]
[1748457118502,23.20448286,170.34,170.29,23.20448286]
[1748457120611,5.87026709,170.35,170.29,23.20448286]
[1748457120901,5.87074957,170.34,170.3,23.20448286]
[1748457121108,29.07523243,170.34,170.3,23.20448286]
[1748457121292,5.87074957,170.34,170.3,23.20448286]
[1748457121891,29.07523243,170.34,170.3,23.20448286]
[1748457126608,29.07480378,170.35,170.3,23.20448286]
[1748457126803,37.87634972,170.4,170.34,23.20448286]
[1748457126986,100.3844,170.41,170.34,23.20448286]
[1748457126987,9.22,170.41,170.38,23.20448286]
[1748457127322,15.08822995,170.41,170.39,23.20448286]
[1748457127490,9.22,170.41,170.39,23.20448286]
[1748457128292,9.22,170.41,170.4,23.20448286]
[1748457128497,5.86786704,170.42,170.4,23.20448286]
[1748457128899,5.86786704,170.42,170.39,23.20448286]
[1748457129605,5.86786704,170.42,170.38,23.20448286]
[1748457132117,5.86786704,170.42,170.39,23.20448286]
[1748457132820,43.74198961,170.42,170.38,23.20448286]
[1748457133302,43.74198961,170.42,170.35,1.5168]
[1748457133491,43.74198961,170.42,170.38,23.20448286]
[1748457133815,20.53750675,170.42,170.38,23.20448286]
[1748457134016,20.53750675,170.42,170.39,23.20448286]
[1748457136895,110.03750675,170.42,170.39,23.20448286]
[1748457137092,110.03750675,170.42,170.38,23.20448286]
[1748457137726,95.36786704,170.42,170.4,23.20448286]
[1748457137900,95.36786704,170.42,170.35,20.16644886]
[1748457137901,95.36786704,170.42,170.41,23.20448286]
[1748457138233,89.5,170.42,170.41,23.20448286]
[1748457140023,5.8669076,170.45,170.41,23.20448286]
[1748457140204,89.5,170.47,170.44,23.20448286]
[1748457140527,5.86654861,170.46,170.45,23.20448286]
[1748457142913,5.8657907,170.48,170.45,23.20448286]
[1748457143129,5.8657907,170.48,170.47,23.20448286]
[1748457143408,5.8657907,170.48,170.46,23.20448286]
[1748457143712,20.53026747,170.48,170.42,37.3077]
[1748457143902,23.20448286,170.47,170.42,23.20448286]
[1748457144103,43.73475033,170.48,170.43,23.20448286]
[1748457144337,5.8657907,170.48,170.46,23.20448286]
[1748457144640,5.8657907,170.48,170.47,23.20448286]
[1748457145520,89.5,170.49,170.47,23.20448286]
[1748457145836,89.5,170.49,170.48,23.20448286]
[1748457146408,95.36544665,170.49,170.48,23.20448286]
[1748457148742,5.86544665,170.49,170.48,23.20448286]
[1748457154034,15.12523418,170.5,170.48,23.20448286]
[1748457154733,5.86523418,170.5,170.48,23.20448286]
[1748457155337,5.86475866,170.51,170.49,23.20448286]
[1748457155507,5.86455243,170.52,170.5,23.20448286]
[1748457155711,5.86455243,170.52,170.51,23.20448286]
[1748457156519,5.86407083,170.53,170.51,23.20448286]
[1748457165334,5.86407083,170.53,170.52,23.20448286]
[1748457170326,5.86303939,170.56,170.52,23.20448286]
[1748457170523,5.86303939,170.56,170.55,23.20448286]
[1748457170935,5.86303939,170.56,170.54,23.20448286]
[1748457171542,5.86303939,170.56,170.53,23.20448286]
[1748457171928,23.20448286,170.55,170.51,23.20448286]
[1748457172128,89.5,170.57,170.49,23.20448286]
[1748457172129,20.52424792,170.53,170.49,23.20448286]
[1748457173356,20.52424792,170.53,170.5,23.20448286]
[1748457174640,14.66017709,170.53,170.5,23.20448286]
[1748457174822,14.66017709,170.53,170.48,26.0]
[1748457175028,104.16017709,170.53,170.5,23.20448286]
[1748457176744,95.36407083,170.53,170.48,26.0]
[1748457176944,95.36407083,170.53,170.52,23.20448286]
[1748457177147,5.86407083,170.53,170.52,23.20448286]
[1748457177853,5.86407083,170.53,170.51,23.20448286]
[1748457179072,5.86372698,170.54,170.51,23.20448286]
[1748457180448,20.52304444,170.54,170.51,23.20448286]
[1748457184677,5.86372698,170.54,170.53,23.20448286]
[1748457185750,5.86372698,170.54,170.49,18.64964886]
[1748457185950,5.86372698,170.54,170.5,23.20448286]
[1748457186444,20.52304444,170.54,170.5,23.20448286]
[1748457186652,5.86372698,170.54,170.52,23.20448286]
[1748457187652,95.36338952,170.55,170.53,23.20448286]
[1748457187851,95.36338952,170.55,170.54,23.20448286]
[1748457188367,5.86338952,170.55,170.54,23.20448286]
[1748457189355,5.86338952,170.55,170.5,1.5395]
[1748457189666,5.86338952,170.55,170.54,23.20448286]
[1748457189861,5.86269566,170.57,170.54,23.20448286]
[1748457191241,5.86269566,170.57,170.55,23.20448286]
[1748457191653,5.86247664,170.58,170.56,23.20448286]
[1748457191941,5.86200832,170.59,170.57,23.20448286]
[1748457194051,5.86200832,170.59,170.58,23.20448286]
[1748457195164,20.51539792,170.61,170.58,23.20448286]
[1748457195346,23.20448286,170.6,170.55,23.20448286]
[1748457195549,23.20448286,170.58,170.53,23.20448286]
[1748457195742,23.20448286,170.57,170.53,23.20448286]
[1748457196565,23.20448286,170.58,170.53,23.20448286]
[1748457196951,5.86235197,170.58,170.54,23.20448286]
[1748457197345,20.5182319,170.58,170.54,23.20448286]
[1748457202154,23.20448286,170.56,170.5,1.5395]
[1748457202469,23.20448286,170.54,170.5,23.20448286]
[1748457204246,5.86407083,170.53,170.49,23.20448286]
[1748457205063,5.86407083,170.53,170.5,23.20448286]
[1748457206262,20.52327363,170.54,170.5,23.20448286]
[1748457206453,43.72775649,170.54,170.49,23.20448286]
[1748457209379,20.52327363,170.54,170.5,23.20448286]
[1748457209700,5.86372698,170.54,170.51,23.20448286]
[1748457209991,5.86372698,170.54,170.52,23.20448286]
[1748457210662,5.86338317,170.55,170.52,23.20448286]
[1748457211284,5.86338317,170.55,170.51,23.20448286]
[1748457211977,5.86338317,170.55,170.54,23.20448286]
[1748457212359,5.86312728,170.56,170.54,23.20448286]
[1748457212776,15.06282669,170.57,170.51,18.64964886]
[1748457212974,5.86200832,170.59,170.56,23.20448286]
[1748457213163,5.86200832,170.59,170.57,23.20448286]
[1748457215760,5.86200832,170.59,170.58,23.20448286]
[1748457216074,5.86097761,170.62,170.58,23.20448286]
[1748457216276,5.86097761,170.62,170.59,23.20448286]
[1748457217268,5.86097761,170.62,170.6,23.20448286]
[1748457217471,5.86097761,170.62,170.61,23.20448286]
[1748457217682,5.86029067,170.64,170.61,23.20448286]
[1748457217862,5.86029067,170.64,170.62,23.20448286]
[1748457218386,5.86029067,170.64,170.61,23.20448286]
[1748457219463,43.7155002,170.64,170.58,35.7]
[1748457219669,23.20448286,170.63,170.58,58.90448286]
[1748457219966,23.20448286,170.63,170.58,23.20448286]
[1748457220378,43.7155002,170.64,170.59,23.20448286]
[1748457220686,20.51342163,170.62,170.58,23.20448286]
[1748457225185,20.51342163,170.62,170.59,23.20448286]
[1748457228507,20.51342163,170.62,170.6,23.20448286]
[1748457229006,20.51342163,170.62,170.59,23.20448286]
[1748457229215,43.71790449,170.62,170.56,26.0]
[1748457229510,43.71790449,170.62,170.57,23.20448286]
[1748457229799,43.71790449,170.62,170.58,23.20448286]
[1748457231184,20.51342163,170.62,170.59,23.20448286]
[1748457232577,20.51342163,170.62,170.58,23.20448286]
[1748457236496,20.51342163,170.62,170.59,23.20448286]
[1748457241098,43.71790449,170.62,170.58,23.20448286]
[1748457241800,43.71790449,170.62,170.57,23.20448286]
[1748457242899,23.20448286,170.58,170.53,9.2]
[1748457243105,43.72391768,170.57,170.52,23.20448286]
[1748457243487,23.20448286,170.56,170.51,23.20448286]
[1748457243684,43.72391768,170.57,170.52,23.20448286]
[1748457244798,23.20448286,170.56,170.51,23.20448286]
[1748457245115,5.86338317,170.55,170.51,23.20448286]
[1748457247316,5.86338317,170.55,170.52,23.20448286]
[1748457248420,5.86200832,170.59,170.54,23.20448286]
[1748457248590,5.86200832,170.59,170.57,23.20448286]
[1748457249386,5.86200832,170.59,170.56,23.20448286]
[1748457250590,20.51702913,170.59,170.53,26.0]
[1748457250792,23.20448286,170.57,170.52,58.90448286]
[1748457250997,23.20448286,170.57,170.52,23.20448286]
[1748457252134,23.20448286,170.55,170.5,23.20448286]
[1748457252922,23.20448286,170.55,170.48,72.5118]
[1748457253195,23.20448286,170.52,170.47,23.20448286]
[1748457253397,23.20448286,170.51,170.45,9.2]
[1748457253630,23.20448286,170.5,170.45,32.40448286]
[1748457254017,5.86544665,170.49,170.45,32.40448286]
[1748457254519,20.52906328,170.49,170.45,23.20448286]
[1748457255108,43.73354614,170.49,170.44,50.76048286]
[1748457255529,5.86544665,170.49,170.44,27.556]
[1748457255815,5.86544665,170.49,170.45,23.20448286]
[1748457259922,29.06992951,170.49,170.44,23.20448286]
[1748457260098,29.06992951,170.49,170.43,35.7]
[1748457260303,29.06992951,170.49,170.44,23.20448286]
[1748457260526,43.73354614,170.49,170.44,23.20448286]
[1748457261230,43.73354614,170.49,170.42,44.64964886]
[1748457261405,43.73354614,170.49,170.44,23.20448286]
[1748457261829,43.73354614,170.49,170.42,80.34964886]
[1748457262011,29.07061766,170.47,170.42,23.20448286]
[1748457262404,5.8661348,170.47,170.43,23.20448286]
[1748457263830,29.07061766,170.47,170.43,23.20448286]
[1748457264037,23.20448286,170.46,170.4,36.8069]
[1748457264220,23.20448286,170.45,170.4,32.40448286]
[1748457264537,23.20448286,170.44,170.4,32.40448286]
[1748457265032,23.20448286,170.44,170.4,23.20448286]
[1748457265337,112.70448286,170.46,170.41,23.20448286]
[1748457265509,89.5,170.46,170.44,23.20448286]
[1748457265718,89.5,170.46,170.45,23.20448286]
[1748457266433,89.5,170.46,170.44,23.20448286]
[1748457266434,95.36661419,170.46,170.44,23.20448286]
[1748457267514,23.86344095,170.5,170.45,23.20448286]
[1748457267711,5.86544665,170.49,170.46,23.20448286]
[1748457268326,29.06992951,170.49,170.43,18.64964886]
[1748457268505,29.06992951,170.49,170.44,23.20448286]
[1748457269314,5.86544665,170.49,170.45,23.20448286]
[1748457270309,29.06992951,170.49,170.45,23.20448286]
[1748457270530,43.73354614,170.49,170.45,23.20448286]
[1748457270716,43.73354614,170.49,170.44,23.20448286]
[1748457272515,43.73354614,170.49,170.45,23.20448286]
[1748457272932,133.23354614,170.49,170.45,23.20448286]
[1748457274341,133.23354614,170.49,170.44,23.20448286]
[1748457275343,23.20448286,170.48,170.44,23.20448286]
[1748457275941,133.23354614,170.49,170.44,23.20448286]
[1748457277645,23.20448286,170.46,170.41,32.40448286]
[1748457277935,23.20448286,170.45,170.4,23.20448286]
[1748457278136,23.20448286,170.44,170.4,23.20448286]
[1748457278538,89.78432314,170.48,170.36,15.7729]
[1748457278539,23.20448286,170.42,170.36,15.7729]
[1748457278720,23.20448286,170.41,170.36,23.20448286]
[1748457279118,23.20448286,170.41,170.34,37.4452]
[1748457279336,23.20448286,170.41,170.37,23.20448286]
[1748457279523,5.8685446,170.4,170.37,23.20448286]
[1748457280546,5.86825779,170.41,170.38,23.20448286]
[1748457281119,5.86751158,170.43,170.4,23.20448286]
[1748457281314,15.06725754,170.44,170.41,23.20448286]
[1748457282453,15.06725754,170.44,170.4,23.20448286]
[1748457283324,15.06725754,170.44,170.38,35.94]
[1748457283639,15.06725754,170.44,170.4,23.20448286]
[1748457284146,15.06725754,170.44,170.38,35.94]
[1748457284445,15.06725754,170.44,170.4,23.20448286]
[1748457286653,38.2717404,170.44,170.4,23.20448286]
[1748457287354,23.20448286,170.43,170.38,59.14448286]
[1748457288462,5.86785588,170.42,170.38,59.14448286]
[1748457289144,20.53749559,170.42,170.38,59.14448286]
[1748457291444,20.53749559,170.42,170.39,23.20448286]
[1748457294648,14.66963971,170.42,170.39,23.20448286]
[1748457295033,5.86751158,170.43,170.39,23.20448286]
[1748457297242,5.86751158,170.43,170.4,23.20448286]
[1748457299471,43.74077341,170.43,170.39,23.20448286]
[1748457301769,20.53629055,170.43,170.39,23.20448286]
[1748457301959,20.53629055,170.43,170.4,23.20448286]
[1748457304163,20.53629055,170.43,170.39,23.20448286]
[1748457305365,43.74077341,170.43,170.38,23.20448286]
[1748457305560,5.86820022,170.41,170.38,23.20448286]
[1748457306173,5.86820022,170.41,170.39,23.20448286]
[1748457306687,5.86751158,170.43,170.4,23.20448286]
[1748457306975,5.86751158,170.43,170.41,23.20448286]
[1748457307673,5.86682311,170.45,170.42,23.20448286]
[1748457308272,5.86682311,170.45,170.43,23.20448286]
[1748457309178,5.86682311,170.45,170.44,23.20448286]
[1748457309662,5.8661348,170.47,170.44,23.20448286]
[1748457310254,5.86510263,170.5,170.46,23.20448286]
[1748457310587,5.86510263,170.5,170.48,23.20448286]
[1748457310885,5.86510263,170.5,170.47,23.20448286]
[1748457313659,5.86475866,170.51,170.47,23.20448286]
[1748457313860,5.86475866,170.51,170.48,23.20448286]
[1748457314500,5.86475866,170.51,170.49,23.20448286]
[1748457314658,5.86475866,170.51,170.5,23.20448286]
[1748457314990,14.66161915,170.52,170.5,23.20448286]
[1748457314991,5.86441473,170.52,170.5,23.20448286]
[1748457315195,5.86441473,170.52,170.51,23.20448286]
[1748457315363,5.86441473,170.52,170.5,23.20448286]
[1748457317598,5.86441473,170.52,170.51,23.20448286]
[1748457318473,20.52223587,170.55,170.51,23.20448286]
[1748457318675,5.86338317,170.55,170.54,23.20448286]
[1748457318877,5.86338317,170.55,170.53,23.20448286]
[1748457319088,29.06786603,170.55,170.47,1.6016]
[1748457319289,23.20448286,170.53,170.49,23.20448286]
[1748457319680,23.20448286,170.54,170.49,23.20448286]
[1748457319879,23.20448286,170.54,170.5,23.20448286]
[1748457320302,20.5218411,170.55,170.5,23.20448286]
[1748457320486,43.72632396,170.55,170.51,23.20448286]
[1748457320697,110.0218411,170.55,170.51,23.20448286]
[1748457320888,110.0218411,170.55,170.52,23.20448286]
[1748457321090,95.36338317,170.55,170.54,23.20448286]
[1748457321307,95.36338317,170.55,170.52,23.20448286]
[1748457321680,118.56786603,170.55,170.5,59.16448286]
[1748457321897,23.20448286,170.54,170.49,23.20448286]
[1748457322195,49.20448286,170.54,170.49,23.20448286]
[1748457322602,20.52424792,170.53,170.49,23.20448286]
[1748457322783,43.72873078,170.53,170.49,23.20448286]
[1748457323181,20.52424792,170.53,170.49,23.20448286]
[1748457324479,5.86407083,170.53,170.5,23.20448286]
[1748457324686,5.86407083,170.53,170.51,23.20448286]
[1748457324885,5.86407083,170.53,170.48,18.64964886]
[1748457325080,5.86407083,170.53,170.51,23.20448286]
[1748457327104,5.86372698,170.54,170.51,23.20448286]
[1748457329686,5.86372698,170.54,170.52,23.20448286]
[1748457330280,5.86372698,170.54,170.51,23.20448286]
[1748457331912,5.86372698,170.54,170.52,23.20448286]
[1748457333201,5.86372698,170.54,170.48,18.64964886]
[1748457333403,5.86372698,170.54,170.47,1.6016]
[1748457333404,23.20448286,170.52,170.47,1.6016]
[1748457333703,23.20448286,170.48,170.44,23.20448286]
[1748457334002,23.20448286,170.48,170.43,23.20448286]
[1748457334201,23.20448286,170.47,170.43,23.20448286]
[1748457334506,0.14216157,170.51,170.44,23.20448286]
[1748457334507,23.20448286,170.48,170.44,23.20448286]
[1748457334697,23.20448286,170.49,170.44,23.20448286]
[1748457335590,29.07027356,170.48,170.44,23.20448286]
[1748457335791,5.8657907,170.48,170.44,23.20448286]
[1748457336111,29.07027356,170.48,170.44,23.20448286]
[1748457339606,29.07027356,170.48,170.42,18.64964886]
[1748457339607,23.20448286,170.47,170.42,18.64964886]
[1748457339809,23.20448286,170.47,170.43,23.20448286]
[1748457340009,5.86647893,170.46,170.43,23.20448286]
[1748457340891,5.86647893,170.46,170.44,23.20448286]
[1748457342109,5.86647893,170.46,170.41,45.28]
[1748457342110,5.8661348,170.47,170.43,23.20448286]
[1748457343205,29.07061766,170.47,170.43,23.20448286]
[1748457344002,20.53026747,170.48,170.44,23.20448286]
[1748457346498,29.06958549,170.5,170.45,23.20448286]
[1748457346711,5.86510263,170.5,170.46,23.20448286]
[1748457346917,5.86510263,170.5,170.47,23.20448286]
[1748457347103,5.86510263,170.5,170.48,23.20448286]
[1748457348119,5.86475866,170.51,170.48,23.20448286]
[1748457348818,5.86475866,170.51,170.47,23.20448286]
[1748457350204,29.06924152,170.51,170.47,23.20448286]
[1748457353422,5.86475866,170.51,170.47,23.20448286]
[1748457357922,5.86475866,170.51,170.48,23.20448286]
[1748457360518,5.86475866,170.51,170.5,23.20448286]
[1748457360709,5.86475866,170.51,170.49,23.20448286]
[1748457362101,5.86475866,170.51,170.48,23.20448286]
[1748457362729,5.86475866,170.51,170.47,23.20448286]
[1748457362948,5.86475866,170.51,170.48,23.20448286]
[1748457363130,5.86475866,170.51,170.45,56.10804886]
[1748457363131,5.86475866,170.51,170.49,23.20448286]
[1748457363809,5.86475866,170.51,170.5,23.20448286]
[1748457364008,89.5,170.55,170.5,23.20448286]
[1748457364333,5.86338317,170.55,170.54,23.20448286]
[1748457364630,5.86235197,170.58,170.54,23.20448286]
[1748457364809,20.5182319,170.58,170.55,23.20448286]
[1748457365136,20.5182319,170.58,170.54,23.20448286]
[1748457365440,43.72271476,170.58,170.54,23.20448286]
[1748457366037,43.72271476,170.58,170.53,23.20448286]
[1748457369840,20.5182319,170.58,170.55,23.20448286]
[1748457371048,43.72271476,170.58,170.54,23.20448286]
[1748457372237,43.72271476,170.58,170.51,20.23964886]
[1748457372445,43.72271476,170.58,170.44,4.73132503]
[1748457372446,23.20448286,170.52,170.44,4.73132503]
[1748457372631,23.20448286,170.5,170.45,23.20448286]
[1748457372831,23.20448286,170.5,170.45,59.04448286]
[1748457373030,23.20448286,170.49,170.44,49.20448286]
[1748457373418,23.20448286,170.5,170.45,23.20448286]
[1748457374121,23.20448286,170.49,170.45,23.20448286]
[1748457374314,5.8657907,170.48,170.44,49.20448286]
[1748457374827,29.07027356,170.48,170.44,49.20448286]
[1748457375224,29.07027356,170.48,170.44,23.20448286]
[1748457375225,5.8657907,170.48,170.44,23.20448286]
[1748457377738,23.20448286,170.48,170.44,23.20448286]
[1748457377958,0.14216157,170.51,170.45,23.20448286]
[1748457378122,23.20448286,170.5,170.46,23.20448286]
[1748457379430,5.86544665,170.49,170.45,23.20448286]
[1748457379856,89.5,170.51,170.47,23.20448286]
[1748457380044,89.5,170.51,170.5,23.20448286]
[1748457380253,5.86407083,170.53,170.5,23.20448286]
[1748457380553,5.86382464,170.54,170.51,23.20448286]
[1748457380770,5.86382464,170.54,170.52,23.20448286]
[1748457381269,23.20448286,170.57,170.52,23.20448286]
[1748457381474,23.20448286,170.57,170.54,23.20448286]
[1748457381475,5.86269566,170.57,170.54,23.20448286]
[1748457382146,5.86269566,170.57,170.53,23.20448286]
[1748457382659,5.86269566,170.57,170.54,23.20448286]
[1748457383548,20.51895786,170.58,170.55,23.20448286]
[1748457383758,5.86235197,170.58,170.55,23.20448286]
[1748457384052,23.20448286,170.57,170.53,23.20448286]
[1748457384253,23.20448286,170.57,170.52,23.20448286]
[1748457385357,5.86303939,170.56,170.52,23.20448286]
[1748457385735,5.86303939,170.56,170.53,23.20448286]
[1748457387750,5.86269566,170.57,170.53,23.20448286]
[1748457391352,31.86269566,170.57,170.53,23.20448286]
[1748457391932,69.72391768,170.57,170.53,23.20448286]
[1748457397649,69.72391768,170.57,170.54,23.20448286]
[1748457397848,5.86269566,170.57,170.56,23.20448286]
[1748457398769,20.51943482,170.57,170.51,18.64964886]
[1748457398945,5.86338317,170.55,170.52,23.20448286]
[1748457400764,5.86303939,170.56,170.52,23.20448286]
[1748457400973,5.86303939,170.56,170.53,23.20448286]
[1748457401164,5.86303939,170.56,170.54,23.20448286]
[1748457401553,5.86303939,170.56,170.55,23.20448286]
[1748457402257,5.86303939,170.56,170.54,23.20448286]
[1748457402451,5.86303939,170.56,170.53,23.20448286]
[1748457402670,29.06752225,170.56,170.52,23.20448286]
[1748457402852,29.06752225,170.56,170.51,23.20448286]
[1748457402853,43.72512074,170.56,170.51,23.20448286]
[1748457404075,23.20448286,170.55,170.49,18.64964886]
[1748457404355,23.20448286,170.55,170.5,23.20448286]
[1748457404858,5.86372698,170.54,170.5,23.20448286]
[1748457406467,5.86372698,170.54,170.51,23.20448286]
[1748457408457,5.86372698,170.54,170.52,23.20448286]
[1748457409678,5.86338317,170.55,170.52,23.20448286]
[1748457410755,5.86338317,170.55,170.53,23.20448286]
[1748457411783,5.86303939,170.56,170.53,23.20448286]
[1748457412182,5.86303939,170.56,170.54,23.20448286]
[1748457413460,5.86303939,170.56,170.53,23.20448286]
[1748457415082,5.86269566,170.57,170.53,23.20448286]
[1748457415288,43.72391768,170.57,170.52,23.20448286]
[1748457415595,43.72391768,170.57,170.5,61.82]
[1748457415596,23.20448286,170.55,170.5,61.82]
[1748457415769,23.20448286,170.55,170.5,49.20448286]
[1748457415959,23.20448286,170.55,170.5,23.20448286]
[1748457417265,5.86372698,170.54,170.5,23.20448286]
[1748457417483,5.86372698,170.54,170.51,23.20448286]
[1748457417690,5.86372698,170.54,170.52,23.20448286]
[1748457418074,5.86372698,170.54,170.53,23.20448286]
[1748457418390,5.86303939,170.56,170.53,23.20448286]
[1748457420170,5.86303939,170.56,170.52,23.20448286]
[1748457420992,5.86303939,170.56,170.54,23.20448286]
[1748457421192,5.86303939,170.56,170.55,23.20448286]
[1748457421402,5.86303939,170.56,170.51,80.46964886]
[1748457421604,23.20448286,170.55,170.49,26.0]
[1748457421886,23.20448286,170.53,170.49,49.20448286]
[1748457422294,23.20448286,170.54,170.5,23.20448286]
[1748457423105,5.86407083,170.53,170.5,23.20448286]
[1748457424899,5.86407083,170.53,170.52,23.20448286]
[1748457425405,43.72632396,170.55,170.47,80.46964886]
[1748457425601,23.20448286,170.54,170.5,23.20448286]
[1748457425892,23.20448286,170.52,170.48,23.20448286]
[1748457427703,43.73113818,170.51,170.46,23.20448286]
[1748457428018,20.52665532,170.51,170.46,23.20448286]
[1748457428312,43.73113818,170.51,170.46,23.20448286]
[1748457428593,43.73113818,170.51,170.47,23.20448286]
[1748457428795,20.52665532,170.51,170.47,23.20448286]
[1748457428996,20.52665532,170.51,170.48,23.20448286]
[1748457430614,37.86637952,170.51,170.45,18.64964886]
[1748457430896,37.86637952,170.51,170.47,23.20448286]
[1748457431596,14.66189666,170.51,170.47,23.20448286]
[1748457432881,20.52665532,170.51,170.47,23.20448286]
[1748457435118,5.86475866,170.51,170.48,23.20448286]
[1748457435399,5.8645369,170.52,170.5,23.20448286]
[1748457435618,5.8645369,170.52,170.51,23.20448286]
[1748457436482,5.86372698,170.54,170.5,23.20448286]
[1748457437607,5.86372698,170.54,170.49,35.8]
[1748457437608,5.86372698,170.54,170.51,23.20448286]
[1748457438603,5.86372698,170.54,170.49,35.8]
[1748457438779,5.86372698,170.54,170.48,26.0]
[1748457438780,23.20448286,170.52,170.48,26.0]
[1748457438977,23.20448286,170.51,170.47,23.20448286]
[1748457439800,23.20448286,170.52,170.47,23.20448286]
[1748457440995,5.86475866,170.51,170.47,23.20448286]
[1748457442789,20.52665532,170.51,170.47,23.20448286]
[1748457442988,43.73113818,170.51,170.47,23.20448286]
[1748457445214,20.52665532,170.51,170.47,23.20448286]
[1748457445394,5.86475866,170.51,170.49,23.20448286]
[1748457445600,5.86475866,170.51,170.48,23.20448286]